bitfinex-derivatives/quotes_BTCF0:USTF0_20250719
["timestamp","ask_amount","ask_price","bid_price","bid_amount"]
[1752883201774,0.35754,118060.0,118050.0,0.03223224]
[1752883202672,0.35754,118060.0,118050.0,0.75383224]
[1752883203566,0.35754,118060.0,118050.0,0.92313204]
[1752883205276,0.35754,118060.0,118050.0,1.21797204]
[1752883205874,0.5268254,118060.0,118050.0,1.21797204]
[1752883206575,0.5258254,118060.0,118050.0,1.21797204]
[1752883206875,0.35454,118060.0,118050.0,1.21797204]
[1752883207072,0.35554,118060.0,118050.0,1.21797204]
[1752883207669,0.5248254,118060.0,118050.0,1.21797204]
[1752883208276,0.35554,118060.0,118050.0,1.21797204]
[1752883209668,0.35554,118060.0,118050.0,0.85717204]
[1752883209868,0.35554,118060.0,118050.0,1.21797204]
[1752883210878,0.35554,118060.0,118050.0,1.1876098]
[1752883211079,0.41654045,118060.0,118050.0,1.1876098]
[1752883212569,0.35534045,118060.0,118050.0,1.1876098]
[1752883213278,0.29434,118060.0,118050.0,1.1876098]
[1752883214482,0.35534045,118060.0,118050.0,1.1876098]
[1752883215781,0.36636045,118060.0,118050.0,1.1876098]
[1752883215983,0.38320956,118060.0,118050.0,1.1876098]
[1752883219387,0.36320956,118060.0,118050.0,1.1876098]
[1752883223088,0.30220911,118060.0,118050.0,1.1876098]
[1752883224888,0.29118911,118060.0,118050.0,1.1876098]
[1752883225688,0.01016,118070.0,118060.0,0.2707454]
[1752883225989,0.20100045,118070.0,118060.0,0.6315454]
[1752883226286,0.21116045,118070.0,118060.0,0.6315454]
[1752883226687,0.15016,118070.0,118060.0,0.6315454]
[1752883226888,0.15116,118070.0,118060.0,0.6315454]
[1752883227290,0.15216,118070.0,118060.0,0.6315454]
[1752883227684,0.15116,118070.0,118060.0,0.6315454]
[1752883227893,0.21152,118070.0,118060.0,0.6315454]
[1752883230688,0.141,118070.0,118060.0,0.6315454]
[1752883231592,0.15116,118070.0,118060.0,0.6315454]
[1752883231794,0.21152,118070.0,118060.0,0.6315454]
[1752883237693,0.28946401,118070.0,118060.0,0.6315454]
[1752883238094,0.22846356,118070.0,118060.0,0.6315454]
[1752883238394,0.28946401,118070.0,118060.0,0.6315454]
[1752883242096,0.22846356,118070.0,118060.0,0.9254254]
[1752883242797,0.29637545,118070.0,118060.0,0.9254254]
[1752883243798,0.30168545,118070.0,118060.0,0.9254254]
[1752883244694,0.34249545,118070.0,118060.0,0.6315454]
[1752883244895,0.34249545,118070.0,118060.0,0.8238854]
[1752883245198,0.34249545,118070.0,118060.0,0.4630854]
[1752883245199,0.40343083,118070.0,118060.0,0.4630854]
[1752883245391,0.40343083,118070.0,118060.0,0.8671754]
[1752883246097,0.40343083,118070.0,118060.0,0.9253454]
[1752883246398,0.33551894,118070.0,118060.0,0.9253454]
[1752883246899,0.27458356,118070.0,118060.0,0.9253454]
[1752883247199,0.27458356,118070.0,118060.0,0.61226781]
[1752883247499,0.33551899,118070.0,118060.0,0.90606781]
[1752883249700,0.33551899,118070.0,118060.0,0.87336781]
[1752883250499,0.27458356,118070.0,118060.0,0.90606781]
[1752883250699,0.41861961,118070.0,118060.0,0.90606781]
[1752883251802,0.35083264,118070.0,118060.0,0.90606781]
[1752883253898,0.35083264,118070.0,118060.0,0.84789781]
[1752883254204,0.52010364,118070.0,118060.0,0.1692854]
[1752883254802,0.88090364,118070.0,118060.0,0.1692854]
[1752883255602,0.80465456,118070.0,118060.0,0.1692854]
[1752883256097,0.52010364,118070.0,118060.0,0.1692854]
[1752883256303,0.88090364,118070.0,118060.0,0.1692854]
[1752883260608,0.88090364,118070.0,118060.0,0.15000589]
[1752883261308,0.88090364,118070.0,118060.0,0.08136394]
[1752883261604,0.88077603,118070.0,118060.0,0.08136394]
[1752883262207,0.86383247,118070.0,118060.0,0.08136394]
[1752883263503,0.787711,118070.0,118060.0,0.08136394]
[1752883267012,0.86383247,118070.0,118060.0,0.08136394]
[1752883267613,1.15747247,118070.0,118060.0,0.08136394]
[1752883268511,1.081351,118070.0,118060.0,0.08136394]
[1752883271013,0.720551,118070.0,118060.0,0.08136394]
[1752883272722,0.55128,118070.0,118060.0,0.08136394]
[1752883273417,0.61857687,118070.0,118060.0,0.08136394]
[1752883274518,0.47857687,118070.0,118060.0,0.08136394]
[1752883274824,0.55469834,118070.0,118060.0,0.08136394]
[1752883276324,0.48417834,118070.0,118050.0,0.53888085]
[1752883276520,0.49443834,118070.0,118060.0,0.1692854]
[1752883276726,0.43512073,118070.0,118060.0,0.10064302]
[1752883276925,0.57246333,118070.0,118060.0,0.10064302]
[1752883277627,0.55565947,118070.0,118060.0,0.10064302]
[1752883278420,0.47949687,118070.0,118060.0,0.10064302]
[1752883278621,0.60296698,118070.0,118060.0,0.10064302]
[1752883281127,0.49621827,118070.0,118060.0,0.10064302]
[1752883281527,0.60296698,118070.0,118060.0,0.10064302]
[1752883282629,0.67916149,118070.0,118060.0,0.10064302]
[1752883282927,0.57241278,118070.0,118060.0,0.10064302]
[1752883289628,0.20733278,118070.0,118050.0,0.5196018]
[1752883289833,0.17483531,118060.0,118050.0,0.7583315]
[1752883290131,0.19155671,118060.0,118050.0,0.7583315]
[1752883290631,0.17483531,118060.0,118050.0,0.7583315]
[1752883292333,0.17483531,118060.0,118050.0,0.7603315]
[1752883292633,0.19164448,118060.0,118050.0,0.7603315]
[1752883292929,0.19264448,118060.0,118050.0,0.7593315]
[1752883293932,0.17055808,118060.0,118050.0,0.7944415]
[1752883294635,0.17055808,118060.0,118050.0,0.7934415]
[1752883294933,0.17155808,118060.0,118050.0,0.79732232]
[1752883295734,0.12712208,118060.0,118050.0,0.79732232]
[1752883295930,0.10241968,118060.0,118050.0,0.79732232]
[1752883296232,0.20292558,118070.0,118060.0,0.2792253]
[1752883296434,0.22139558,118070.0,118060.0,0.6505953]
[1752883297137,0.15409871,118070.0,118060.0,0.6505953]
[1752883297638,0.15409871,118070.0,118060.0,0.63131706]
[1752883297834,0.18963871,118070.0,118060.0,0.63131706]
[1752883298031,0.20299871,118070.0,118060.0,0.92467706]
[1752883299737,0.20299871,118070.0,118060.0,0.85603891]
[1752883300735,0.07924861,118070.0,118060.0,0.85603891]
[1752883301036,0.001,118070.0,118060.0,0.85603891]
[1752883301236,0.08289,118080.0,118070.0,0.217991]
[1752883301436,0.08289,118080.0,118070.0,0.650581]
[1752883302736,0.08489,118080.0,118070.0,0.650581]
[1752883302938,0.09625,118080.0,118070.0,0.650581]
[1752883304237,0.09725,118080.0,118070.0,0.650581]
[1752883305042,0.17343466,118080.0,118070.0,0.650581]
[1752883305642,0.17343466,118080.0,118070.0,0.63130385]
[1752883306640,0.09725,118080.0,118070.0,0.63130385]
[1752883312638,4e-08,118080.0,118070.0,0.63130385]
[1752883313640,4e-08,118080.0,118070.0,0.61202731]
[1752883313842,0.50765575,118100.0,118090.0,0.2349523]
[1752883314042,0.52612575,118100.0,118090.0,0.27585113]
[1752883314440,0.56929575,118100.0,118090.0,0.27585113]
[1752883314840,0.20849575,118100.0,118090.0,0.27585113]
[1752883315041,0.21049575,118100.0,118090.0,0.27585113]
[1752883315242,0.10388,118100.0,118090.0,0.27585113]
[1752883315437,0.18669588,118100.0,118090.0,0.18145113]
[1752883315642,0.18669588,118100.0,118080.0,0.2961787]
[1752883315643,0.1756023,118090.0,118080.0,0.2961787]
[1752883315843,0.5364023,118090.0,118080.0,0.2961787]
[1752883316145,0.70577031,118090.0,118080.0,0.2961787]
[1752883316545,0.81238606,118090.0,118080.0,0.2961787]
[1752883316746,1.10550606,118090.0,118080.0,0.2961787]
[1752883317347,0.99889031,118090.0,118080.0,0.2961787]
[1752883317750,1.01565741,118090.0,118080.0,0.2538691]
[1752883317949,1.01665741,118090.0,118080.0,0.2961824]
[1752883318549,1.01665741,118090.0,118080.0,0.22408898]
[1752883318848,1.00742031,118090.0,118080.0,0.22408898]
[1752883319044,1.01042031,118090.0,118080.0,0.22408898]
[1752883319550,1.37122031,118090.0,118080.0,0.22408898]
[1752883321247,1.52371848,118090.0,118080.0,0.22408898]
[1752883321745,1.35435047,118090.0,118080.0,0.20480992]
[1752883321950,0.4802523,118090.0,118080.0,0.20480992]
[1752883322151,1.2018523,118090.0,118080.0,0.20480992]
[1752883323954,1.2018523,118090.0,118080.0,0.23720992]
[1752883324453,1.2018523,118090.0,118080.0,0.27859992]
[1752883326254,1.30840006,118090.0,118080.0,0.27859992]
[1752883327255,1.13915776,118090.0,118080.0,0.27859992]
[1752883329457,1.30843436,118090.0,118080.0,0.23628662]
[1752883329657,1.30843436,118090.0,118080.0,0.1584166]
[1752883329857,1.30843436,118090.0,118080.0,0.3276592]
[1752883331158,1.13915776,118090.0,118080.0,0.3401692]
[1752883331757,1.30839766,118090.0,118080.0,0.3401692]
[1752883334156,1.13915776,118090.0,118080.0,0.3401692]
[1752883334461,1.30840026,118090.0,118080.0,0.3401692]
[1752883334859,1.30840026,118090.0,118080.0,0.3946992]
[1752883335059,0.84498776,118090.0,118080.0,0.3946992]
[1752883335259,0.84063776,118090.0,118080.0,0.3946992]
[1752883335462,0.77283776,118090.0,118080.0,0.3946992]
[1752883335858,0.47983776,118090.0,118080.0,0.3946992]
[1752883336075,0.77283776,118090.0,118080.0,0.3946992]
[1752883337563,0.94993086,118090.0,118080.0,0.2853459]
[1752883337763,0.1924218,118070.0,118060.0,0.00043022]
[1752883338064,0.1693005,118050.0,118040.0,0.07379]
[1752883338265,0.1873192,118030.0,118020.0,0.3412487]
[1752883338469,0.8523592,118030.0,118020.0,0.3957787]
[1752883338763,1.31970696,118030.0,118020.0,0.0324]
[1752883338967,1.2131592,118030.0,118020.0,0.2017435]
[1752883339169,1.2131592,118030.0,118020.0,0.1693435]
[1752883339170,1.31955828,118030.0,118020.0,0.1693435]
[1752883339465,0.01462,118010.0,118000.0,0.3534887]
[1752883339669,0.8377779,118010.0,118000.0,0.3534887]
[1752883340267,0.91377724,118010.0,118000.0,0.3948787]
[1752883340663,0.8377779,118010.0,118000.0,0.3948787]
[1752883340970,0.66842,118010.0,118000.0,0.3948787]
[1752883341664,0.73865167,118010.0,118000.0,0.3968787]
[1752883341866,0.73865167,118010.0,118000.0,0.3978787]
[1752883342965,0.73865167,118010.0,118000.0,0.3494287]
[1752883343167,1.1985774,118010.0,118000.0,0.2461618]
[1752883343366,1.25921904,118010.0,118000.0,0.2461618]
[1752883343574,1.08986164,118010.0,118000.0,0.3132018]
[1752883343869,1.25921904,118010.0,118000.0,0.3132018]
[1752883344067,1.25969904,118010.0,118000.0,0.3132018]
[1752883344369,1.26084904,118010.0,118000.0,0.3132018]
[1752883347666,1.08986164,118010.0,118000.0,0.3132018]
[1752883347969,0.45070167,118020.0,118010.0,0.2264973]
[1752883348170,0.76035645,118020.0,118010.0,0.3122773]
[1752883348670,0.46727645,118020.0,118010.0,0.3122773]
[1752883348873,0.39959645,118020.0,118010.0,0.3122773]
[1752883349170,0.07808424,118020.0,118010.0,0.3122773]
[1752883353573,0.07992424,118020.0,118010.0,0.3122773]
[1752883353778,0.08314424,118020.0,118010.0,0.3122773]
[1752883354874,0.44394424,118020.0,118010.0,0.3122773]
[1752883355074,0.61328724,118020.0,118010.0,0.3122773]
[1752883355274,0.61602724,118020.0,118010.0,0.3122773]
[1752883355577,0.44394424,118020.0,118010.0,0.3122773]
[1752883358371,0.38343478,118020.0,118010.0,0.3122773]
[1752883358768,0.45928645,118020.0,118010.0,0.3122773]
[1752883360278,0.38343478,118020.0,118010.0,0.3122773]
[1752883360578,0.02263478,118020.0,118010.0,0.3122773]
[1752883360779,0.01757478,118020.0,118010.0,0.6730773]
[1752883361978,0.060593,118030.0,118020.0,0.3122635]
[1752883362174,0.38183,118060.0,118050.0,0.2264405]
[1752883362374,0.38183,118060.0,118050.0,0.24355836]
[1752883362679,0.02301,118060.0,118050.0,0.24355836]
[1752883362880,0.40334,118060.0,118050.0,0.21533836]
[1752883363077,0.64847777,118060.0,118050.0,0.17383836]
[1752883363379,0.77227167,118060.0,118050.0,0.17383836]
[1752883363573,0.94155777,118060.0,118050.0,0.17383836]
[1752883364073,0.94255777,118060.0,118050.0,0.17383836]
[1752883364269,0.64947777,118060.0,118050.0,0.17383836]
[1752883364574,0.8667461,118060.0,118050.0,0.17383836]
[1752883364879,0.8687461,118060.0,118050.0,0.17383836]
[1752883365282,0.5756261,118060.0,118050.0,0.17383836]
[1752883365581,0.97518518,118060.0,118050.0,0.17383836]
[1752883366777,0.8687861,118060.0,118050.0,0.22869852]
[1752883367177,0.8687861,118060.0,118050.0,0.21479094]
[1752883367582,0.8687861,118060.0,118050.0,0.22737094]
[1752883368080,1.02128427,118060.0,118050.0,0.22737094]
[1752883368574,1.02128427,118060.0,118050.0,0.18053638]
[1752883370580,1.02128427,118060.0,118050.0,0.22209638]
[1752883371679,1.12766574,118060.0,118050.0,0.22209638]
[1752883372080,0.97516757,118060.0,118050.0,0.22209638]
[1752883372680,0.97516757,118060.0,118050.0,0.25373638]
[1752883374382,0.8687861,118060.0,118050.0,0.25373638]
[1752883375282,0.8687861,118060.0,118050.0,0.23982909]
[1752883376478,0.8687861,118060.0,118050.0,0.22054407]
[1752883376784,0.8687861,118060.0,118050.0,0.2550805]
[1752883377282,0.8687861,118060.0,118050.0,0.2234405]
[1752883377683,1.02128427,118060.0,118050.0,0.2234405]
[1752883378283,1.02128427,118060.0,118050.0,0.19589079]
[1752883379882,1.02128427,118060.0,118050.0,0.23232079]
[1752883380287,1.02128427,118060.0,118050.0,0.24677079]
[1752883380680,0.85199817,118060.0,118050.0,0.30893079]
[1752883380880,0.4438487,118060.0,118050.0,0.30893079]
[1752883381083,0.4025487,118060.0,118050.0,0.66973079]
[1752883381275,0.07906203,118060.0,118050.0,0.66973079]
[1752883381582,0.003,118060.0,118050.0,0.68875406]
[1752883381783,0.1095087,118060.0,118050.0,0.68875406]
[1752883382685,0.18555449,118060.0,118050.0,0.68875406]
[1752883382880,0.07904579,118060.0,118050.0,0.68875406]
[1752883383687,0.07704579,118060.0,118050.0,0.68875406]
[1752883384185,0.001,118060.0,118050.0,0.68875406]
[1752883384384,0.07704579,118060.0,118050.0,0.68875406]
[1752883384580,0.07704579,118060.0,118050.0,0.66947294]
[1752883392585,0.07704579,118060.0,118050.0,0.65019237]
[1752883394689,0.07704579,118060.0,118050.0,0.69820237]
[1752883395092,0.001,118060.0,118050.0,0.69820237]
[1752883400093,0.001,118060.0,118050.0,0.99120237]
[1752883400393,0.001,118060.0,118050.0,0.63040237]
[1752883400594,0.001,118060.0,118050.0,0.99120237]
[1752883401285,0.07704579,118060.0,118050.0,0.99120237]
[1752883402095,0.07704579,118060.0,118050.0,0.97192163]
[1752883404294,0.001,118060.0,118050.0,0.97192163]
[1752883406094,0.1075087,118060.0,118050.0,0.97192163]
[1752883407692,0.1075087,118060.0,118050.0,0.61112163]
[1752883407897,0.1075087,118060.0,118050.0,0.97192163]
[1752883408896,0.083949,118060.0,118050.0,0.97192163]
[1752883409098,0.07702894,118060.0,118050.0,0.67892163]
[1752883409398,4e-08,118060.0,118050.0,0.97188163]
[1752883410499,4e-08,118060.0,118050.0,0.67892163]
[1752883410699,4e-08,118060.0,118050.0,0.97252163]
[1752883410998,4e-08,118060.0,118050.0,0.97352163]
[1752883411196,0.08169032,118070.0,118050.0,0.83547327]
[1752883411399,0.08169032,118070.0,118060.0,0.6713361]
[1752883412797,0.08169032,118070.0,118060.0,0.68009908]
[1752883413102,0.08169032,118070.0,118060.0,0.66082046]
[1752883419606,0.08169032,118070.0,118060.0,0.95418046]
[1752883419903,0.18837262,118070.0,118060.0,0.95418046]
[1752883420605,0.18837262,118070.0,118060.0,0.95410046]
[1752883421106,0.18837262,118070.0,118060.0,0.9348219]
[1752883426726,0.22633262,118070.0,118060.0,0.9348219]
[1752883428926,0.11965032,118070.0,118060.0,1.2956219]
[1752883431519,0.19583203,118070.0,118060.0,1.2956219]
[1752883432727,0.19583203,118070.0,118060.0,0.9348219]
[1752883433026,0.11965032,118070.0,118060.0,0.9348219]
[1752883433826,0.08169032,118070.0,118060.0,0.9348219]
[1752883434024,0.08169032,118070.0,118060.0,0.9354319]
[1752883434225,0.08169032,118070.0,118060.0,1.2962319]
[1752883434628,0.18837262,118070.0,118060.0,1.2962319]
[1752883435027,0.22376262,118070.0,118060.0,1.2962319]
[1752883435433,0.18837262,118070.0,118060.0,1.2962319]
[1752883435932,0.18837262,118070.0,118060.0,1.2972319]
[1752883436131,0.18837262,118070.0,118060.0,0.9374119]
[1752883437625,0.1562798,118070.0,118060.0,0.9374119]
[1752883437928,0.01487,118080.0,118070.0,0.2254629]
[1752883438126,0.01487,118080.0,118070.0,0.6721129]
[1752883438431,0.05026,118080.0,118070.0,0.6721129]
[1752883440230,0.11435,118080.0,118070.0,0.6721129]
[1752883440430,0.1613,118080.0,118070.0,0.6721129]
[1752883441426,0.1613,118080.0,118070.0,0.69120705]
[1752883441626,0.24198681,118080.0,118070.0,0.69120705]
[1752883442228,0.2587122,118080.0,118070.0,0.69120705]
[1752883442731,0.2253822,118080.0,118070.0,0.69120705]
[1752883443429,0.1592322,118080.0,118070.0,0.69120705]
[1752883444834,0.1443622,118080.0,118070.0,0.69120705]
[1752883445037,0.09826416,118080.0,118070.0,0.69120705]
[1752883445335,0.1592322,118080.0,118070.0,0.69120705]
[1752883445835,0.1946222,118080.0,118070.0,0.69120705]
[1752883446241,0.3056622,118080.0,118070.0,0.69120705]
[1752883446737,0.24469416,118080.0,118070.0,0.6225705]
[1752883446937,0.32090422,118080.0,118070.0,0.9169605]
[1752883447137,0.24469416,118080.0,118070.0,0.9169605]
[1752883447833,0.24469416,118080.0,118070.0,0.9179605]
[1752883448237,0.24469416,118080.0,118070.0,0.9169605]
[1752883449436,0.35135683,118080.0,118070.0,0.9169605]
[1752883450236,0.35135683,118080.0,118070.0,0.9175705]
[1752883453440,0.16441416,118080.0,118070.0,0.9175705]
[1752883455742,0.24059213,118080.0,118070.0,0.9175705]
[1752883456744,0.24059213,118080.0,118070.0,0.81693415]
[1752883456946,0.24059213,118080.0,118070.0,0.98620705]
[1752883457742,0.24059213,118080.0,118070.0,0.9671129]
[1752883458649,0.16441416,118080.0,118070.0,0.9671129]
[1752883459450,0.31802683,118080.0,118070.0,0.94801536]
[1752883461851,0.37897823,118080.0,118070.0,0.94801536]
[1752883462251,0.27231556,118080.0,118070.0,0.94801536]
[1752883466054,0.21136416,118080.0,118070.0,0.94801536]
[1752883466255,0.31802683,118080.0,118070.0,0.94801536]
[1752883466853,0.35303683,118080.0,118070.0,0.93610881]
[1752883467557,0.35303683,118080.0,118070.0,0.91683126]
[1752883469551,0.35303683,118080.0,118070.0,0.94842126]
[1752883474061,0.35303683,118080.0,118070.0,0.96752592]
[1752883475560,0.35303683,118080.0,118070.0,0.9482484]
[1752883476461,0.24637416,118080.0,118070.0,0.9482484]
[1752883476760,0.24637416,118080.0,118070.0,0.87961193]
[1752883477163,0.30737872,118080.0,118070.0,0.87961193]
[1752883478858,0.30737872,118080.0,118070.0,0.88135193]
[1752883482666,0.32262986,118080.0,118070.0,0.88135193]
[1752883483868,0.32262986,118080.0,118070.0,0.58635193]
[1752883484068,0.32262986,118080.0,118070.0,0.88111193]
[1752883484770,0.35313214,118080.0,118070.0,0.88111193]
[1752883484965,0.35313214,118080.0,118070.0,0.88050193]
[1752883485669,0.35313214,118080.0,118070.0,0.86122444]
[1752883486770,0.35313214,118080.0,118070.0,0.79258846]
[1752883487570,0.35313214,118080.0,118070.0,0.57337756]
[1752883487870,0.35313214,118080.0,118070.0,0.2595129]
[1752883488072,0.24637416,118080.0,118070.0,0.5541129]
[1752883488370,0.35313284,118080.0,118070.0,0.5541129]
[1752883491475,0.35313284,118080.0,118070.0,0.5523729]
[1752883492269,0.52239114,118080.0,118070.0,0.2261829]
[1752883492471,0.88319114,118080.0,118070.0,0.1692729]
[1752883492775,0.17521,118070.0,118060.0,0.668667]
[1752883492974,0.65950084,118070.0,118060.0,0.668667]
[1752883493173,0.82877344,118070.0,118060.0,0.373987]
[1752883493774,0.81204805,118070.0,118060.0,0.35470751]
[1752883494572,0.82898644,118070.0,118060.0,0.35470751]
[1752883494773,0.29891384,118070.0,118060.0,0.35470751]
[1752883494973,0.29891384,118070.0,118060.0,0.39098751]
[1752883495173,0.29891384,118070.0,118060.0,0.39649751]
[1752883496080,0.29891384,118070.0,118060.0,0.39749751]
[1752883496779,0.29891384,118070.0,118060.0,0.37117477]
[1752883497078,0.29891384,118070.0,118060.0,0.41349567]
[1752883497470,0.28197545,118070.0,118060.0,0.41349567]
[1752883497673,0.17521,118070.0,118060.0,0.41349567]
[1752883498978,0.25139087,118070.0,118060.0,0.41349567]
[1752883499580,0.26818364,118070.0,118060.0,0.41349567]
[1752883500579,0.26818364,118070.0,118060.0,0.41528567]
[1752883501984,0.26818364,118070.0,118060.0,0.77608567]
[1752883502482,0.26818364,118070.0,118060.0,0.41349567]
[1752883503388,0.43745634,118070.0,118060.0,0.40798567]
[1752883503590,0.43745634,118070.0,118060.0,0.37170567]
[1752883504088,0.90502179,118070.0,118060.0,0.35242607]
[1752883504393,0.82884092,118070.0,118060.0,0.35242607]
[1752883506599,0.65956822,118070.0,118060.0,0.35242607]
[1752883506792,0.65956822,118070.0,118060.0,0.32610298]
[1752883506996,0.55280277,118070.0,118060.0,0.37463388]
[1752883507596,0.61217543,118070.0,118060.0,0.40775388]
[1752883508403,0.25137543,118070.0,118060.0,0.40775388]
[1752883509398,0.3474514,118050.0,118030.0,0.0846636]
[1752883509608,0.34748,118030.0,118020.0,0.05573786]
[1752883509799,0.70828,118030.0,118020.0,0.2058344]
[1752883509994,0.53895,118030.0,118010.0,0.2540225]
[1752883510199,0.81505985,118020.0,118010.0,0.2967225]
[1752883510500,0.3475087,118010.0,118000.0,0.2967434]
[1752883510697,0.81052658,118010.0,117990.0,0.1178113]
[1752883511007,1.22978194,118010.0,118000.0,0.1693731]
[1752883511499,0.86143384,118010.0,118000.0,0.1693731]
[1752883511701,0.96819929,118010.0,118000.0,0.1693731]
[1752883512205,0.95963473,118010.0,118000.0,0.1693731]
[1752883512606,0.91729203,118010.0,118000.0,0.1693731]
[1752883512906,0.87494933,118010.0,118000.0,0.1693731]
[1752883513206,0.30244883,118010.0,118000.0,0.1693731]
[1752883513505,0.30244883,118010.0,118000.0,0.5500831]
[1752883513506,0.27151077,118010.0,118000.0,0.5500831]
[1752883513805,0.16000338,118010.0,118000.0,0.9108831]
[1752883514101,0.19568338,118010.0,118000.0,0.2490831]
[1752883514302,0.19568338,118010.0,118000.0,0.2451931]
[1752883514303,0.25631637,118010.0,118000.0,0.2451931]
[1752883514506,0.32328079,118010.0,118000.0,0.2120731]
[1752883514706,0.32327726,118010.0,118000.0,0.5135531]
[1752883514906,0.32327726,118010.0,118000.0,0.2120731]
[1752883515404,0.49263596,118010.0,118000.0,0.2120731]
[1752883515700,0.32327726,118010.0,118000.0,0.2120731]
[1752883518610,0.2626478,118010.0,118000.0,0.2120731]
[1752883520706,0.32320264,118010.0,118000.0,0.2120731]
[1752883521304,0.32320264,118010.0,118000.0,0.6123831]
[1752883521509,0.1225678,118010.0,118000.0,0.6123831]
[1752883521703,0.0844978,118010.0,118000.0,0.6123831]
[1752883522613,0.1225678,118010.0,118000.0,0.6123831]
[1752883522808,0.1916978,118010.0,118000.0,0.6123831]
[1752883526815,0.1916978,118010.0,118000.0,0.9133831]
[1752883527010,0.1916978,118010.0,118000.0,0.9133431]
[1752883529214,0.25225264,118010.0,118000.0,0.9133431]
[1752883529716,0.1752978,118010.0,118000.0,0.9133431]
[1752883530215,0.18312264,118010.0,118000.0,0.9133431]
[1752883531119,0.1776078,118010.0,118000.0,0.9133431]
[1752883531319,0.23816264,118010.0,118000.0,0.9133431]
[1752883531824,0.1776078,118010.0,118000.0,0.9133431]
[1752883532219,0.23816264,118010.0,118000.0,0.9133431]
[1752883532916,0.1776078,118010.0,118000.0,0.9133431]
[1752883534213,0.1930778,118010.0,118000.0,0.9133431]
[1752883535920,0.1930778,118010.0,118000.0,1.2741431]
[1752883537418,0.2609178,118010.0,118000.0,0.9127031]
[1752883537615,0.2609178,118010.0,118000.0,0.9111331]
[1752883538523,0.2609178,118010.0,118000.0,0.9123931]
[1752883539322,0.32147264,118010.0,118000.0,0.9123931]
[1752883540625,0.2609178,118010.0,118000.0,0.91251194]
[1752883540925,0.33704932,118010.0,118000.0,0.91251194]
[1752883543328,0.2609178,118010.0,118000.0,0.91251194]
[1752883543731,0.2609178,118010.0,118000.0,0.61219194]
[1752883543930,0.33709469,118010.0,118000.0,0.91211194]
[1752883544231,0.2609178,118010.0,118000.0,0.91211194]
[1752883545428,0.24338442,118010.0,118000.0,0.91211194]
[1752883545630,0.26078871,118010.0,118000.0,0.91211194]
[1752883545932,0.36755416,118010.0,118000.0,0.91211194]
[1752883548132,0.26078871,118010.0,118000.0,0.91211194]
[1752883548533,0.26078871,118010.0,118000.0,0.89282388]
[1752883549533,0.36755416,118010.0,118000.0,0.89282388]
[1752883549934,0.26078871,118010.0,118000.0,0.89282388]
[1752883550334,0.36755416,118010.0,118000.0,0.89282388]
[1752883550535,0.36755416,118010.0,118000.0,0.82415028]
[1752883551134,0.36755416,118010.0,118000.0,0.52423028]
[1752883551329,0.36755416,118010.0,118000.0,0.82371028]
[1752883552534,0.59792869,118010.0,118000.0,0.52423028]
[1752883552736,0.50641722,118010.0,118000.0,0.52423028]
[1752883552937,0.43014731,118010.0,118000.0,0.82375028]
[1752883553234,0.50641486,118010.0,118000.0,0.82375028]
[1752883555339,0.50641032,118010.0,118000.0,0.82375028]
[1752883555841,0.50641032,118010.0,118000.0,0.46295028]
[1752883557737,0.43014731,118010.0,118000.0,0.44366159]
[1752883558338,0.53691276,118010.0,118000.0,0.44366159]
[1752883560537,0.53691276,118010.0,118000.0,0.3749845]
[1752883564042,0.43014731,118010.0,118000.0,0.3749845]
[1752883564442,0.53691276,118010.0,118000.0,0.3749845]
[1752883564843,0.36755416,118010.0,118000.0,0.3749845]
[1752883565043,0.36755416,118010.0,118000.0,0.7357845]
[1752883565242,0.26078871,118010.0,118000.0,0.3749845]
[1752883565743,0.43014721,118010.0,118000.0,0.46901194]
[1752883566839,0.53691266,118010.0,118000.0,0.46901194]
[1752883570544,0.53691266,118010.0,118000.0,0.40033489]
[1752883571247,0.51950837,118010.0,118000.0,0.40033489]
[1752883572438,0.53638362,118010.0,118000.0,0.40033489]
[1752883573648,0.53638362,118010.0,118000.0,0.38104599]
[1752883574251,0.53638362,118010.0,118000.0,0.1693731]
[1752883574549,0.53638362,118010.0,118000.0,0.4682131]
[1752883574745,0.53638362,118010.0,118000.0,0.8290131]
[1752883577255,0.53638362,118010.0,118000.0,0.4682131]
[1752883580657,0.53638362,118010.0,118000.0,0.39953569]
[1752883581660,0.53638362,118010.0,118000.0,0.38024666]
[1752883584958,0.36702512,118010.0,118000.0,0.38024666]
[1752883586660,0.36702512,118010.0,118000.0,0.74104666]
[1752883586961,0.33313512,118010.0,118000.0,0.74104666]
[1752883587162,0.28371512,118010.0,118000.0,0.74104666]
[1752883587361,0.23797147,118010.0,118000.0,0.74104666]
[1752883588062,0.23797147,118010.0,118000.0,1.03624666]
[1752883588063,7e-08,118010.0,118000.0,1.03624666]
[1752883588360,0.13571614,118030.0,118020.0,0.1693443]
[1752883588565,0.13571614,118030.0,118020.0,0.8284643]
[1752883588751,0.13571614,118030.0,118020.0,1.1892643]
[1752883589360,0.05943,118030.0,118020.0,1.1892643]
[1752883589661,0.13571614,118030.0,118020.0,1.1699803]
[1752883590360,0.19257614,118030.0,118020.0,1.1699803]
[1752883590760,0.26159426,118030.0,118020.0,1.1699803]
[1752883591261,0.18530812,118030.0,118020.0,1.1699803]
[1752883591463,0.26259426,118030.0,118020.0,1.1699803]
[1752883593067,0.20316426,118030.0,118020.0,1.1981103]
[1752883593263,6e-08,118030.0,118020.0,1.1981103]
[1752883593560,0.05586,118040.0,118030.0,0.1693299]
[1752883593754,0.05586,118040.0,118030.0,0.5301299]
[1752883594463,0.12504246,118040.0,118030.0,0.5301299]
[1752883594659,0.07371,118040.0,118030.0,0.5301299]
[1752883595162,0.11729,118040.0,118030.0,0.5301299]
[1752883595857,0.11729,118040.0,118030.0,0.53852203]
[1752883598266,0.17807724,118040.0,118030.0,0.53852203]
[1752883599268,0.24700884,118040.0,118030.0,0.53852203]
[1752883600364,0.24700884,118040.0,118030.0,0.51923976]
[1752883601165,0.27405884,118040.0,118030.0,0.81703976]
[1752883601467,0.31943884,118040.0,118030.0,0.81703976]
[1752883608866,0.31943884,118040.0,118030.0,0.81743976]
[1752883611273,0.2586516,118040.0,118030.0,0.81743976]
[1752883612269,0.2586516,118040.0,118030.0,0.81755976]
[1752883613173,0.31943884,118040.0,118030.0,0.81755976]
[1752883613568,0.2586516,118040.0,118030.0,0.81755976]
[1752883613974,0.31943884,118040.0,118030.0,0.81755976]
[1752883614174,0.31943884,118040.0,118030.0,0.81948976]
[1752883614473,0.31943884,118040.0,118030.0,0.82979976]
[1752883615269,0.2586516,118040.0,118030.0,0.81051754]
[1752883615874,0.33460285,118040.0,118030.0,0.81051754]
[1752883616374,0.2586516,118040.0,118030.0,0.81051754]
[1752883617378,0.3513233,118040.0,118030.0,0.81051754]
[1752883618179,0.2788933,118040.0,118030.0,0.81051754]
[1752883620278,0.3088833,118040.0,118030.0,0.81051754]
[1752883620481,0.3568133,118040.0,118030.0,0.81051754]
[1752883623182,0.3568133,118040.0,118030.0,0.80931754]
[1752883623378,0.3568133,118040.0,118030.0,0.78653556]
[1752883625682,0.3568133,118040.0,118030.0,0.42573556]